bitfinex/quotes_BTCUSD_20250617
["timestamp","ask_amount","ask_price","bid_price","bid_amount"]
[1750133108681,1.38959613,107690.0,107680.0,0.00214197]
[1750133112222,1.59447139,107690.0,107680.0,0.00214197]
[1750133112430,1.70018873,107690.0,107680.0,0.00214197]
[1750133112643,6.75018873,107690.0,107680.0,0.00214197]
[1750133115489,6.78726056,107690.0,107680.0,0.00214197]
[1750133116536,0.7637625,107660.0,107650.0,0.07422872]
[1750133116742,1.14883348,107660.0,107650.0,0.07438637]
[1750133117664,1.15283348,107660.0,107650.0,0.07438637]
[1750133118648,1.15283348,107660.0,107650.0,0.08978637]
[1750133118856,1.18122692,107660.0,107650.0,0.08978637]
[1750133119192,1.18122692,107660.0,107650.0,0.01555765]
[1750133119615,1.17922692,107660.0,107650.0,0.01555765]
[1750133119800,1.17722692,107660.0,107650.0,0.01555765]
[1750133119996,1.67052692,107660.0,107650.0,0.01555765]
[1750133120268,1.67352692,107660.0,107650.0,0.01555765]
[1750133120453,1.67752692,107660.0,107650.0,0.01555765]
[1750133120654,1.67752692,107660.0,107650.0,0.00015765]
[1750133122092,1.47265166,107660.0,107650.0,0.00015765]
[1750133122344,1.67752692,107660.0,107650.0,0.00015765]
[1750133122548,1.67752692,107660.0,107650.0,0.01625765]
[1750133124413,1.67752692,107660.0,107650.0,0.00015765]
[1750133126393,1.69970023,107660.0,107650.0,0.00015765]
[1750133128334,1.69970023,107660.0,107650.0,0.01595765]
[1750133128961,1.89598023,107660.0,107650.0,0.01595765]
[1750133129315,1.92379457,107660.0,107650.0,0.01595765]
[1750133131347,1.70504166,107660.0,107650.0,0.00015765]
[1750133131551,1.67722732,107660.0,107650.0,0.00015765]
[1750133131733,1.73283507,107660.0,107650.0,0.00015765]
[1750133132595,0.98977876,107660.0,107650.0,0.00015765]
[1750133132816,1.17551402,107660.0,107650.0,0.03205765]
[1750133133026,1.13840349,107660.0,107650.0,0.03205765]
[1750133135234,1.17551402,107660.0,107650.0,0.03205765]
[1750133135487,1.27166324,107660.0,107650.0,0.03205765]
[1750133136342,1.23451271,107660.0,107650.0,0.03205765]
[1750133136649,1.08151271,107660.0,107650.0,0.03205765]
[1750133136892,0.91757101,107660.0,107650.0,0.03205765]
[1750133137107,0.36972146,107660.0,107650.0,0.03205765]
[1750133137322,0.50070815,107660.0,107650.0,0.03205765]
[1750133137543,0.855249,107660.0,107650.0,0.03205765]
[1750133138376,0.515249,107660.0,107650.0,0.03205765]
[1750133138792,0.855249,107660.0,107650.0,0.03205765]
[1750133139640,0.55134639,107660.0,107650.0,0.03205765]
[1750133139848,0.74446639,107660.0,107650.0,0.03205765]
[1750133140679,0.73746639,107660.0,107650.0,0.03205765]
[1750133140893,0.74146639,107660.0,107650.0,0.03205765]
[1750133144279,0.74134639,107660.0,107650.0,0.03205765]
[1750133144969,0.74126639,107660.0,107650.0,0.03205765]
[1750133147315,0.20834639,107660.0,107650.0,0.03205765]
[1750133147572,0.24830639,107660.0,107650.0,0.03205765]
[1750133147814,0.24830639,107660.0,107650.0,0.23693291]
[1750133148065,0.24830639,107660.0,107650.0,0.03205765]
[1750133148488,0.24430639,107660.0,107650.0,0.03205765]
[1750133154945,0.44918165,107660.0,107650.0,0.03205765]
[1750133160331,0.55996426,107660.0,107650.0,0.03205765]
[1750133160545,0.55996426,107660.0,107650.0,0.01645765]
[1750133161187,0.55996426,107660.0,107650.0,0.03255765]
[1750133161602,0.20434639,107660.0,107650.0,0.03255765]
[1750133161786,0.39710639,107660.0,107650.0,0.03255765]
[1750133162453,0.24430639,107660.0,107650.0,0.03255765]
[1750133162666,0.39710639,107660.0,107650.0,0.03255765]
[1750133167738,0.20434639,107660.0,107650.0,0.43250919]
[1750133167946,0.03715243,107660.0,107650.0,0.45108721]
[1750133168193,0.04644084,107660.0,107650.0,0.45108721]
[1750133168397,0.04644153,107660.0,107650.0,0.60384721]
[1750133169034,0.03715303,107660.0,107650.0,0.60384721]
[1750133169233,0.01857587,107660.0,107650.0,0.60384721]
[1750133169448,0.01857587,107660.0,107650.0,0.62384721]
[1750133170899,0.02786411,107660.0,107650.0,0.62384721]
[1750133171106,0.02786411,107660.0,107650.0,0.47108721]
[1750133171311,0.03715243,107660.0,107650.0,0.62380721]
[1750133171735,0.04644084,107660.0,107650.0,0.47108721]
[1750133171976,0.04644084,107660.0,107650.0,0.62376721]
[1750133172689,0.03715243,107660.0,107650.0,0.62376721]
[1750133173056,0.02786411,107660.0,107650.0,0.62376721]
[1750133176387,0.03715243,107660.0,107650.0,0.62376721]
[1750133176962,0.02786411,107660.0,107650.0,0.62376721]
[1750133177323,0.01857587,107660.0,107650.0,0.62376721]
[1750133178244,0.02786402,107660.0,107650.0,0.62376721]
[1750133179391,0.01857579,107660.0,107650.0,0.62376721]
[1750133180297,0.01857579,107660.0,107650.0,0.47108721]
[1750133180504,0.02786394,107660.0,107650.0,0.62360721]
[1750133181324,0.01857579,107660.0,107650.0,0.62360721]
[1750133181944,0.02786394,107660.0,107650.0,0.62360721]
[1750133182165,0.03715217,107660.0,107650.0,0.47108721]
[1750133182382,0.22292287,107660.0,107650.0,0.61431846]
[1750133182584,0.22292287,107660.0,107650.0,0.62360739]
[1750133182791,0.21363489,107660.0,107650.0,0.61431846]
[1750133183001,0.20434683,107660.0,107650.0,0.61431864]
[1750133183249,0.20434683,107660.0,107650.0,0.62360774]
[1750133183680,0.18577001,107660.0,107650.0,0.03255765]
[1750133183906,0.18867265,107660.0,107650.0,0.00015765]
[1750133184107,0.20397265,107660.0,107650.0,0.00015765]
[1750133184326,0.20107001,107660.0,107650.0,0.00015765]
[1750133186289,0.18577001,107660.0,107650.0,0.00015765]
[1750133186494,0.1886728,107660.0,107650.0,0.00015765]
[1750133192999,0.18577001,107660.0,107650.0,0.21784492]
[1750133193275,0.00928789,107660.0,107650.0,0.4412983]
[1750133193525,0.00928789,107660.0,107650.0,0.45058705]
[1750133193771,0.01857604,107660.0,107650.0,0.45058705]
[1750133194012,0.02786436,107660.0,107650.0,0.45058705]
[1750133194265,0.01857604,107660.0,107650.0,0.45058705]
[1750133194911,0.02786436,107660.0,107650.0,0.45058705]
[1750133195412,0.02786436,107660.0,107650.0,0.24571179]
[1750133195553,0.01857604,107660.0,107650.0,0.45058705]
[1750133195757,0.02786436,107660.0,107650.0,0.45058705]
[1750133196506,0.01857604,107660.0,107650.0,0.45058705]
[1750133196722,0.01857587,107660.0,107650.0,0.45058705]
[1750133196932,0.00928789,107660.0,107650.0,0.45058705]
[1750133197164,0.01857595,107660.0,107650.0,0.45058705]
[1750133198140,0.02786419,107660.0,107650.0,0.45058705]
[1750133198601,0.02786427,107660.0,107650.0,0.24571179]
[1750133198797,0.22292278,107660.0,107650.0,0.4412983]
[1750133199006,0.21363489,107660.0,107650.0,0.59381847]
[1750133199208,0.21363489,107660.0,107650.0,0.60310748]
[1750133199922,0.21363489,107660.0,107650.0,0.61239641]
[1750133202792,0.02786488,107660.0,107650.0,0.62168525]
[1750133202933,0.00928781,107660.0,107650.0,0.62168481]
[1750133203129,0.02786385,107660.0,107650.0,0.62168481]
[1750133203365,0.03715217,107660.0,107650.0,0.62168481]
[1750133203521,0.04644058,107660.0,107650.0,0.62168481]
[1750133204915,0.04644058,107660.0,107650.0,0.59381864]
[1750133204916,0.22292278,107660.0,107650.0,0.59381864]
[1750133205143,0.20434674,107660.0,107650.0,0.18457765]
[1750133205336,0.20434674,107660.0,107650.0,0.01665765]
[1750133205760,0.20434674,107660.0,107650.0,0.16917765]
[1750133206721,0.20434674,107660.0,107650.0,0.01665765]
[1750133206859,0.20434674,107660.0,107650.0,0.16917765]
[1750133207248,0.20434674,107660.0,107650.0,0.01665765]
[1750133207449,0.20434674,107660.0,107650.0,0.22153291]
[1750133207654,0.20434674,107660.0,107650.0,0.37401291]
[1750133209676,0.20434674,107660.0,107650.0,0.22153291]
[1750133209889,0.20434674,107660.0,107650.0,0.37401291]
[1750133210526,0.20434674,107660.0,107650.0,0.22153291]
[1750133210719,0.20434674,107660.0,107650.0,0.37401291]
[1750133211135,0.20434674,107660.0,107650.0,0.22153291]
[1750133211573,0.20434674,107660.0,107650.0,0.37401291]
[1750133213293,0.20434674,107660.0,107650.0,0.38330227]
[1750133213542,0.20434674,107660.0,107650.0,0.42589881]
[1750133213719,0.20434674,107660.0,107650.0,0.57837881]
[1750133214532,0.19505842,107660.0,107650.0,0.42589881]
[1750133215211,0.19505842,107660.0,107650.0,0.57837881]
[1750133216155,0.19505842,107660.0,107650.0,0.587668]
[1750133216944,0.19505842,107660.0,107650.0,0.22102355]
[1750133217156,0.19505842,107660.0,107650.0,0.37350355]
[1750133219030,0.19505842,107660.0,107650.0,0.57837881]
[1750133220500,0.19505842,107660.0,107650.0,0.587668]
[1750133221892,0.19505842,107660.0,107650.0,0.5969571]
[1750133222879,0.19505842,107660.0,107650.0,0.6126571]
[1750133223728,0.19505842,107660.0,107650.0,0.603368]
[1750133223942,0.18577001,107660.0,107650.0,0.37401291]
[1750133224170,0.18577001,107660.0,107650.0,0.22153291]
[1750133224375,0.18577001,107660.0,107650.0,0.16913765]
[1750133224817,0.18577001,107660.0,107650.0,0.01665765]
[1750133225024,0.18577001,107660.0,107650.0,0.16913765]
[1750133225240,0.0092885,107660.0,107650.0,0.56908945]
[1750133225457,0.20434675,107660.0,107650.0,0.60386757]
[1750133226366,0.20434675,107660.0,107650.0,0.59457864]
[1750133227821,0.20434675,107660.0,107650.0,0.44209864]
[1750133228040,0.20434675,107660.0,107650.0,0.60386774]
[1750133228239,0.01857674,107660.0,107650.0,0.61315658]
[1750133228446,0.20434675,107660.0,107650.0,0.61315675]
[1750133229113,0.20434675,107660.0,107650.0,0.38970338]
[1750133229322,0.20434675,107660.0,107650.0,0.59457864]
[1750133229523,0.19505851,107660.0,107650.0,0.56908945]
[1750133229882,0.19505851,107660.0,107650.0,0.41660945]
[1750133230083,0.18577001,107660.0,107650.0,0.37401291]
[1750133230484,0.18577001,107660.0,107650.0,0.38330227]
[1750133230670,0.18577001,107660.0,107650.0,0.39259154]
[1750133231435,0.18577001,107660.0,107650.0,0.40759154]
[1750133232673,0.18577001,107660.0,107650.0,0.602668]
[1750133233278,0.18577001,107660.0,107650.0,0.23653291]
[1750133233434,0.18577001,107660.0,107650.0,0.37397291]
[1750133233806,0.18577001,107660.0,107650.0,0.57833838]
[1750133234006,0.18577001,107660.0,107650.0,0.59333838]
[1750133234772,0.18577001,107660.0,107650.0,0.58404937]
[1750133241562,0.18577001,107660.0,107650.0,0.60404937]
[1750133241764,0.18577001,107660.0,107650.0,0.61333847]
[1750133242830,0.55776391,107680.0,107660.0,0.18577001]
[1750133243087,0.23218902,107670.0,107660.0,0.23696809]
[1750133243316,0.20432776,107670.0,107660.0,0.39690376]
[1750133243537,0.20432776,107670.0,107660.0,0.58267377]
[1750133243775,0.20432776,107670.0,107660.0,0.59196218]
[1750133244245,0.20432776,107670.0,107660.0,0.60118198]
[1750133244961,0.20432776,107670.0,107660.0,0.60218198]
[1750133245659,0.20432776,107670.0,107660.0,0.62075828]
[1750133245912,0.20432776,107670.0,107660.0,0.40659496]
[1750133246150,0.20432776,107670.0,107660.0,0.61347022]
[1750133246382,0.20432776,107670.0,107660.0,0.63204626]
[1750133247586,0.20432776,107670.0,107660.0,0.62275828]
[1750133247819,0.20432776,107670.0,107660.0,0.61347022]
[1750133248025,0.20432776,107670.0,107660.0,0.60418198]
[1750133248253,0.19504039,107670.0,107660.0,0.60418198]
[1750133248481,0.19504039,107670.0,107660.0,0.63204634]
[1750133248711,0.00928634,107680.0,107670.0,0.2361276]
[1750133248947,0.67901826,107690.0,107680.0,0.20430845]
[1750133248948,0.20428999,107690.0,107680.0,0.20430845]
[1750133249174,0.01857138,107690.0,107680.0,0.61199613]
[1750133249581,0.20428964,107690.0,107680.0,0.58413737]
[1750133249789,0.20428964,107690.0,107680.0,0.60271022]
[1750133250005,0.20428964,107690.0,107680.0,0.61199647]
[1750133250411,0.21357555,107690.0,107680.0,0.61199647]
[1750133250625,0.02785729,107690.0,107680.0,0.62128264]
[1750133252237,0.01856966,107700.0,107690.0,0.23508964]
[1750133252413,0.0185688,107700.0,107690.0,0.4492502]
[1750133252619,0.00928427,107700.0,107690.0,0.4492502]
[1750133252829,0.03713804,107700.0,107690.0,0.4492502]
[1750133253050,0.02785325,107700.0,107690.0,0.4492502]
[1750133253431,0.02985325,107700.0,107690.0,0.44940785]
[1750133253813,0.02785325,107700.0,107690.0,0.44940785]
[1750133254208,0.02785325,107700.0,107690.0,0.45040785]
[1750133254410,0.03713812,107700.0,107690.0,0.45040785]
[1750133254634,0.01856863,107700.0,107690.0,0.45040785]
[1750133254817,0.03713812,107700.0,107690.0,0.45040785]
[1750133255170,0.03713804,107700.0,107690.0,0.45040785]
[1750133255575,0.046423,107700.0,107690.0,0.45040794]
[1750133255790,0.21967077,107700.0,107690.0,0.15355765]
[1750133257528,0.20427077,107700.0,107690.0,0.15355765]
[1750133258571,0.21957077,107700.0,107690.0,0.15355765]
[1750133259347,0.23497077,107700.0,107690.0,0.15355765]
[1750133259773,0.21957077,107700.0,107690.0,0.15355765]
[1750133260654,0.21355582,107700.0,107690.0,0.61239394]
[1750133260869,0.0278548,107700.0,107690.0,0.61239394]
[1750133261294,0.0278548,107700.0,107690.0,0.62167933]
[1750133261714,0.21355582,107700.0,107690.0,0.61239394]
[1750133266510,0.21355582,107700.0,107690.0,0.5938229]
[1750133266701,0.20427103,107700.0,107690.0,0.5938229]
[1750133266896,0.19498607,107700.0,107690.0,0.37343291]
[1750133268400,0.19498607,107700.0,107690.0,0.15355765]
[1750133269158,0.19498607,107700.0,107690.0,0.16284356]
[1750133269685,0.19498607,107700.0,107690.0,0.36771882]
[1750133269897,0.19498607,107700.0,107690.0,0.35843291]
[1750133272733,0.19498607,107700.0,107690.0,0.37483291]
[1750133274235,0.19498607,107700.0,107690.0,0.35843291]
[1750133274432,0.43066133,107700.0,107690.0,0.00115765]
[1750133274631,0.88144394,107700.0,107690.0,0.00115765]
[1750133274834,1.03380394,107700.0,107690.0,0.00115765]
[1750133275648,1.03380394,107700.0,107690.0,0.00015765]
[1750133276079,0.82992868,107700.0,107690.0,0.00015765]
[1750133276482,0.83092868,107700.0,107690.0,0.00015765]
[1750133279985,0.66402783,107700.0,107690.0,0.00015765]
[1750133280212,0.84060783,107700.0,107690.0,0.00015765]
[1750133282079,0.68824783,107700.0,107690.0,0.00015765]
[1750133283653,0.90852309,107700.0,107690.0,0.00015765]
[1750133287644,0.70364783,107700.0,107690.0,0.00015765]
[1750133287890,0.68824783,107700.0,107690.0,0.00015765]
[1750133292328,0.89312309,107700.0,107690.0,0.00015765]
[1750133292772,0.90852309,107700.0,107690.0,0.00015765]
[1750133293442,1.06088309,107700.0,107690.0,0.00015765]
[1750133294141,1.04548309,107700.0,107690.0,0.00015765]
[1750133294382,0.89312309,107700.0,107690.0,0.00015765]
[1750133294595,1.04548309,107700.0,107690.0,0.00015765]
[1750133295036,0.89312309,107700.0,107690.0,0.00015765]
[1750133295244,1.04548309,107700.0,107690.0,0.00015765]
[1750133295455,0.89312309,107700.0,107690.0,0.00015765]
[1750133295866,1.04548309,107700.0,107690.0,0.00015765]
[1750133296087,0.89312309,107700.0,107690.0,0.00015765]
[1750133296349,0.90952309,107700.0,107690.0,0.00015765]
[1750133296831,1.06188309,107700.0,107690.0,0.00015765]
[1750133297841,1.04548309,107700.0,107690.0,0.00015765]
[1750133299209,1.06188309,107700.0,107690.0,0.00015765]
[1750133301625,1.7745992,107700.0,107690.0,0.00015765]
[1750133302077,1.79685673,107700.0,107690.0,0.00015765]
[1750133302762,1.81685673,107700.0,107690.0,0.00015765]
[1750133305210,1.40710621,107700.0,107690.0,0.00015765]
[1750133305420,1.81685673,107700.0,107690.0,0.00015765]
[1750133305849,1.91300595,107700.0,107690.0,0.00015765]
[1750133306416,1.41970595,107700.0,107690.0,0.00015765]
[1750133313322,1.26734595,107700.0,107690.0,0.00015765]
[1750133313538,1.41970595,107700.0,107690.0,0.00015765]
[1750133314947,0.91020147,107700.0,107690.0,0.00015765]
[1750133315143,1.05244062,107700.0,107690.0,0.00015765]
[1750133315347,0.83810309,107700.0,107690.0,0.00015765]
[1750133315468,1.03018309,107700.0,107690.0,0.01575765]
[1750133315676,1.04472394,107700.0,107690.0,0.01575765]
[1750133318875,0.30776868,107700.0,107690.0,0.03075765]
[1750133319082,0.29322783,107700.0,107690.0,0.03075765]
[1750133319291,0.82530783,107700.0,107690.0,0.10498637]
[1750133320945,0.48530783,107700.0,107690.0,0.10498637]
[1750133324007,0.19698607,107700.0,107690.0,0.5048658]
[1750133324445,0.19698607,107700.0,107690.0,0.29999054]
[1750133324668,0.19698607,107700.0,107690.0,0.30927636]
[1750133325098,0.19498607,107700.0,107690.0,0.30927636]
[1750133325323,0.19498607,107700.0,107690.0,0.31127636]
[1750133325775,0.19498607,107700.0,107690.0,0.03275765]
[1750133339530,0.73986133,107700.0,107690.0,0.00215765]
[1750133339955,0.73986133,107700.0,107690.0,0.01725765]
[1750133340791,0.53498607,107700.0,107690.0,0.01725765]
[1750133341001,0.53498607,107700.0,107690.0,0.03295765]
[1750133341857,0.01128401,107710.0,107700.0,0.23477086]
[1750133342093,0.02056776,107710.0,107700.0,0.44893082]
[1750133342354,0.002,107710.0,107700.0,0.68309052]
[1750133342582,0.002,107710.0,107700.0,0.77933228]
[1750133343072,0.002,107710.0,107700.0,0.78881894]
[1750133343955,0.003,107710.0,107700.0,0.78881894]
[1750133344200,0.005,107710.0,107700.0,0.78881894]
[1750133344430,0.005,107710.0,107700.0,0.86274964]
[1750133344617,0.003,107710.0,107700.0,0.86274964]
[1750133345081,0.003,107710.0,107700.0,1.32274964]
[1750133345308,0.002,107730.0,107720.0,0.47149074]
[1750133345532,0.002,107730.0,107720.0,0.62397074]
[1750133346741,0.003,107730.0,107720.0,0.62397074]
[1750133347205,0.002,107730.0,107720.0,0.62397074]
[1750133347476,0.02256355,107730.0,107720.0,0.62397074]
[1750133347679,0.02056355,107730.0,107720.0,0.41909548]
[1750133347892,0.21549548,107730.0,107720.0,0.22804978]
[1750133348037,0.21549548,107730.0,107720.0,0.38977276]
[1750133348243,0.21549548,107730.0,107720.0,0.23733276]
[1750133348451,0.19693159,107730.0,107720.0,0.0331]
[1750133348856,0.1876493,107730.0,107720.0,0.0165]
[1750133349065,0.19055012,107730.0,107720.0,0.0165]
[1750133350961,0.19055012,107730.0,107720.0,0.02578332]
[1750133352148,0.19055012,107730.0,107720.0,0.0165]
[1750133353369,0.19055012,107730.0,107710.0,0.59571905]
[1750133353370,0.18566654,107720.0,107710.0,0.44969616]
[1750133353887,0.02784919,107720.0,107710.0,0.61137974]
[1750133354516,0.037132,107720.0,107710.0,0.60209616]
[1750133354998,0.037132,107720.0,107710.0,0.60409616]
[1750133355350,0.037132,107720.0,107710.0,0.60609616]
[1750133355551,0.037132,107720.0,107710.0,0.61537983]
[1750133355823,0.037132,107720.0,107710.0,0.62466341]
[1750133356749,0.22279854,107720.0,107710.0,0.60609616]
[1750133357493,0.22279854,107720.0,107710.0,0.61537983]
[1750133358140,0.037132,107720.0,107710.0,0.62466341]
[1750133358343,0.037132,107720.0,107710.0,0.61537983]
[1750133358550,0.22279854,107720.0,107710.0,0.45369616]
[1750133358746,0.20423284,107720.0,107710.0,0.004]
[1750133360104,0.20423284,107720.0,107710.0,0.20568378]
[1750133360304,0.20423284,107720.0,107710.0,0.43604314]
[1750133360508,0.19494978,107720.0,107710.0,0.43604314]
[1750133360973,0.18566654,107720.0,107710.0,0.24107526]
[1750133361179,0.18856771,107720.0,107710.0,0.02]
[1750133362323,0.18856771,107720.0,107710.0,0.004]
[1750133364286,0.18856771,107720.0,107710.0,0.0205]
[1750133369106,0.28480947,107720.0,107710.0,0.004]
[1750133369339,0.3374683,107720.0,107710.0,0.004]
[1750133371515,0.34683115,107720.0,107710.0,0.004]
[1750133372183,0.2819083,107720.0,107710.0,0.004]
[1750133372396,0.3217083,107720.0,107710.0,0.02]
[1750133373750,0.3217083,107720.0,107710.0,0.004]
[1750133377445,0.3217083,107720.0,107710.0,0.0196]
[1750133378265,0.3217083,107720.0,107710.0,0.004]
[1750133378733,0.3382083,107720.0,107710.0,0.004]
[1750133378972,0.54308356,107720.0,107710.0,0.004]
[1750133379439,0.3382083,107720.0,107710.0,0.004]
[1750133382671,0.54308356,107720.0,107710.0,0.004]
[1750133382896,0.91342441,107720.0,107710.0,0.004]
[1750133384250,0.6384083,107720.0,107710.0,0.004]
[1750133384476,0.1876493,107730.0,107710.0,0.44472698]
[1750133384710,0.21351556,107720.0,107710.0,0.2731966]
[1750133384930,0.21351556,107720.0,107710.0,0.30104804]
[1750133384931,0.03713226,107720.0,107710.0,0.30104804]
[1750133385163,0.03713226,107720.0,107710.0,0.34193162]
[1750133385399,0.21351625,107720.0,107710.0,0.10582872]
[1750133385613,0.2042331,107720.0,107710.0,0.0316]
[1750133386066,0.2042331,107720.0,107710.0,0.24575944]
[1750133386282,0.2042331,107720.0,107710.0,0.44072732]
[1750133387829,0.2042331,107720.0,107710.0,0.44272732]
[1750133388050,0.2042331,107720.0,107710.0,0.44472732]
[1750133390948,0.2042331,107720.0,107710.0,0.45401133]
[1750133391297,0.2042331,107720.0,107710.0,0.24047526]
[1750133394075,0.2042331,107720.0,107710.0,0.24975944]
[1750133394291,0.2042331,107720.0,107710.0,0.46329508]
[1750133394513,0.2042331,107720.0,107710.0,0.24047526]
[1750133397138,0.2042331,107720.0,107710.0,0.0356]
[1750133397393,0.2042331,107720.0,107710.0,0.17246]
[1750133397623,0.2196331,107720.0,107710.0,0.004]
[1750133397862,0.53625012,107720.0,107710.0,0.004]
[1750133398085,0.55079097,107720.0,107710.0,0.004]
[1750133399440,0.31587486,107720.0,107710.0,0.004]
[1750133401046,0.33087486,107720.0,107710.0,0.004]
[1750133402163,0.35567486,107720.0,107710.0,0.004]
[1750133403253,0.30047486,107720.0,107710.0,0.0346]
[1750133403477,0.2042331,107720.0,107710.0,0.5179557]
[1750133403746,0.21351557,107720.0,107710.0,0.50867186]
[1750133403966,0.21351557,107720.0,107710.0,0.52723963]
[1750133404187,0.22279812,107720.0,107710.0,0.5365233]
[1750133404413,0.20423276,107720.0,107710.0,0.46626398]
[1750133404623,0.19494978,107720.0,107710.0,0.46626398]
[1750133404842,0.19494978,107720.0,107710.0,0.47554816]
[1750133405283,0.19494978,107720.0,107710.0,0.48483226]
[1750133405656,0.19494978,107720.0,107710.0,0.51210938]
[1750133405886,0.19494978,107720.0,107710.0,0.707077]
[1750133407358,0.19494978,107720.0,107710.0,0.69779316]
[1750133407601,0.19494978,107720.0,107710.0,0.70707709]
[1750133408052,0.19494978,107720.0,107710.0,0.71636093]
[1750133408270,0.19494978,107720.0,107710.0,0.72564468]
[1750133410253,0.19494978,107720.0,107710.0,0.63284837]
[1750133411143,0.19494978,107720.0,107710.0,0.41931238]
[1750133412137,0.19494978,107720.0,107710.0,0.42859656]
[1750133413110,0.19494978,107720.0,107710.0,0.62356444]
[1750133413506,0.19494978,107720.0,107710.0,0.41868918]
[1750133413748,0.18566654,107720.0,107710.0,0.62356444]
[1750133413966,0.18566654,107720.0,107710.0,0.41931238]
[1750133417529,0.18566654,107720.0,107710.0,0.03127712]
[1750133417530,0.2819083,107720.0,107710.0,0.03127712]
[1750133417791,0.51838356,107720.0,107710.0,0.004]
[1750133417974,0.67074356,107720.0,107710.0,0.004]
[1750133418440,0.4658683,107720.0,107710.0,0.004]
[1750133419151,0.3135083,107720.0,107710.0,0.004]
[1750133420245,0.2970083,107720.0,107710.0,0.004]
[1750133420464,0.2819083,107720.0,107710.0,0.004]
[1750133423880,0.2819083,107720.0,107710.0,0.0351]
[1750133424329,0.2819083,107720.0,107710.0,0.004]
[1750133425441,0.2819083,107720.0,107710.0,0.0196]
[1750133427024,0.2819083,107720.0,107710.0,0.004]
[1750133428129,0.2819083,107720.0,107710.0,0.002]
[1750133428343,0.19496779,107710.0,107700.0,0.23637526]
[1750133429628,0.19496779,107710.0,107700.0,0.24037526]
[1750133431631,0.19496779,107710.0,107700.0,0.37689526]
[1750133432072,0.19496779,107710.0,107700.0,0.39339526]
[1750133432281,0.19496779,107710.0,107700.0,0.17202]
[1750133434356,0.19496779,107710.0,107700.0,0.004]
[1750133434571,0.21146779,107710.0,107700.0,0.004]
[1750133434778,0.19496779,107710.0,107700.0,0.004]
[1750133435724,0.21146779,107710.0,107700.0,0.004]
[1750133437194,0.22065584,107710.0,107700.0,0.004]
[1750133438048,0.20411413,107710.0,107700.0,0.004]
[1750133438267,0.22011413,107710.0,107700.0,0.004]
[1750133439197,0.19496779,107710.0,107700.0,0.004]
[1750133439612,0.19496779,107710.0,107700.0,0.0194]
[1750133453773,0.49608481,107710.0,107700.0,0.004]
[1750133453986,0.51198481,107710.0,107700.0,0.004]
[1750133454192,0.30710955,107710.0,107700.0,0.004]
[1750133454615,0.30710955,107710.0,107700.0,0.002]
[1750133454806,0.19498589,107700.0,107690.0,0.18407765]
[1750133455445,0.19498589,107700.0,107690.0,0.03175765]
[1750133455831,0.19498589,107700.0,107690.0,0.01525765]
[1750133456261,0.19498589,107700.0,107690.0,0.00215765]
[1750133456476,0.51190291,107700.0,107690.0,0.00215765]
[1750133456696,0.32202765,107700.0,107690.0,0.00215765]
[1750133457072,0.52690291,107700.0,107690.0,0.00415765]
[1750133457356,0.86690291,107700.0,107690.0,0.00215765]
[1750133457737,0.86690291,107700.0,107690.0,0.00015765]
[1750133458927,0.66202765,107700.0,107690.0,0.00015765]
[1750133459136,0.86690291,107700.0,107690.0,0.00015765]
[1750133462464,0.66202765,107700.0,107690.0,0.00015765]
[1750133464294,0.86690291,107700.0,107690.0,0.00015765]
[1750133464736,0.66202765,107700.0,107690.0,0.00015765]
[1750133464944,0.85190291,107700.0,107690.0,0.00015765]
[1750133465468,0.64702765,107700.0,107690.0,0.00015765]
[1750133466229,0.66222765,107700.0,107690.0,0.00015765]
[1750133466657,0.86710291,107700.0,107690.0,0.00015765]
[1750133466869,0.66222765,107700.0,107690.0,0.00015765]
[1750133467980,0.64702765,107700.0,107690.0,0.00015765]
[1750133469818,0.86644376,107700.0,107690.0,0.00015765]
[1750133469994,0.91092048,107700.0,107690.0,0.00015765]
[1750133471276,0.91192048,107700.0,107690.0,0.00015765]
[1750133471499,0.91392048,107700.0,107690.0,0.00015765]
[1750133471675,0.91292048,107700.0,107690.0,0.00015765]
[1750133472095,0.91492048,107700.0,107690.0,0.00015765]
[1750133472523,0.91292048,107700.0,107690.0,0.00015765]
[1750133472861,0.91692048,107700.0,107690.0,0.00015765]
[1750133473328,1.12179574,107700.0,107690.0,0.00015765]
[1750133473533,0.91692048,107700.0,107690.0,0.00015765]
[1750133473741,1.12179574,107700.0,107690.0,0.00015765]
[1750133474935,1.27423574,107700.0,107690.0,0.00015765]
[1750133475148,1.11979574,107700.0,107690.0,0.00015765]
[1750133475361,1.27223574,107700.0,107690.0,0.00015765]
[1750133475561,1.26823574,107700.0,107690.0,0.00015765]
[1750133475982,1.27223574,107700.0,107690.0,0.00015765]
[1750133476215,1.26823574,107700.0,107690.0,0.00015765]
[1750133476424,6.31823574,107700.0,107690.0,0.00015765]
[1750133476636,6.32423574,107700.0,107690.0,0.00015765]
[1750133477064,6.32723574,107700.0,107690.0,0.00015765]
[1750133477289,6.582111,107700.0,107690.0,0.00015765]
[1750133477479,6.37723574,107700.0,107690.0,0.00015765]
[1750133477707,6.37423574,107700.0,107690.0,0.00015765]
[1750133477953,6.37823574,107700.0,107690.0,0.00015765]
[1750133484080,5.81604522,107700.0,107690.0,0.00015765]
[1750133484289,0.93746437,107700.0,107690.0,0.00015765]
[1750133484510,1.11356291,107700.0,107690.0,0.00015765]
[1750133484770,1.45529817,107700.0,107690.0,0.00015765]
[1750133484950,1.46983902,107700.0,107690.0,0.00015765]
[1750133485205,1.27755902,107700.0,107690.0,0.00015765]
[1750133485431,1.56598824,107700.0,107690.0,0.00015765]
[1750133485996,1.37370824,107700.0,107690.0,0.00015765]
[1750133486200,1.56598824,107700.0,107690.0,0.00015765]
[1750133486769,1.59388724,107700.0,107690.0,0.00015765]
[1750133487237,1.61038724,107700.0,107690.0,0.00015765]
[1750133487693,1.59388724,107700.0,107690.0,0.00015765]
[1750133487901,1.38580724,107700.0,107690.0,0.00015765]
[1750133488135,1.27706276,107700.0,107690.0,0.01615765]
[1750133488691,0.88854276,107700.0,107690.0,0.01615765]
[1750133488959,1.08082276,107700.0,107690.0,0.03225765]
[1750133489895,1.08078276,107700.0,107690.0,0.03225765]
[1750133491855,0.3436675,107700.0,107690.0,0.03225765]
[1750133492055,0.3554885,107700.0,107690.0,0.03225765]
[1750133492257,0.6954885,107700.0,107690.0,0.03225765]
[1750133492467,0.64122765,107700.0,107690.0,0.10648637]
[1750133492671,0.8480485,107700.0,107690.0,0.10648637]
[1750133492872,0.34094765,107700.0,107690.0,0.10648637]
[1750133493072,0.20498589,107700.0,107690.0,0.31136163]
[1750133493316,0.20098589,107700.0,107690.0,0.49707989]
[1750133493533,0.19498589,107700.0,107690.0,0.50636571]
[1750133493732,0.19898589,107700.0,107690.0,0.10648637]
[1750133494310,0.19898589,107700.0,107690.0,0.32064754]
[1750133494771,0.19698589,107700.0,107690.0,0.32064754]
[1750133496230,0.19498589,107700.0,107690.0,0.31136163]
[1750133496887,0.19498589,107700.0,107690.0,0.32069518]
[1750133497939,0.19498589,107700.0,107690.0,0.24646646]